[Event "Live Chess"]
[Site "Chess.com"]
[Date "2021.03.17"]
[Round "4"]
[White "night_breeze"]
[Black "shoshonte"]
[Result "1-0"]
[CurrentPosition "2B5/8/8/8/8/2K5/1Q6/k7 b - -"]
[Timezone "UTC"]
[ECO "C65"]
[ECOUrl "https://www.chess.com/openings/Ruy-Lopez-Opening-Berlin-Defense-4.d3-Bc5"]
[UTCDate "2021.03.17"]
[UTCTime "03:01:29"]
[WhiteElo "933"]
[BlackElo "1626"]
[TimeControl "2100+2"]
[Termination "night_breeze won by checkmate"]
[StartTime "03:01:29"]
[EndDate "2021.03.17"]
[EndTime "04:13:31"]
[Link "https://www.chess.com/game/live/9689100191"]

1. e4 {[%clk 0:34:43.5]} 1... e5 {[%clk 0:35:00.2]} 2. Nf3 {[%clk 0:34:43.3]} 2... Nc6 {[%clk 0:35:00.9]} 3. Bb5 {[%clk 0:34:43]} 3... Nf6 {[%clk 0:35:01.4]} 4. d3 {[%clk 0:34:11.7]} 4... Bc5 {[%clk 0:35:00.7]} 5. O-O {[%clk 0:33:30.6]} 5... Nd4 {[%clk 0:33:49.6]} 6. Nxd4 {[%clk 0:32:24.6]} 6... exd4 {[%clk 0:32:57.9]} 7. c3 {[%clk 0:31:42.3]} 7... dxc3 {[%clk 0:32:28.8]} 8. Nxc3 {[%clk 0:31:36.1]} 8... c6 {[%clk 0:31:12.1]} 9. Bc4 {[%clk 0:31:02.3]} 9... d6 {[%clk 0:30:53.8]} 10. d4 {[%clk 0:30:51.3]} 10... Bb6 {[%clk 0:28:51.6]} 11. Re1 {[%clk 0:30:02.4]} 11... O-O {[%clk 0:24:59.2]} 12. Bg5 {[%clk 0:28:13.8]} 12... h6 {[%clk 0:23:56.8]} 13. Bh4 {[%clk 0:27:37.9]} 13... g5 {[%clk 0:23:07.4]} 14. Bg3 {[%clk 0:27:32.5]} 14... h5 {[%clk 0:21:53.8]} 15. Qd2 {[%clk 0:25:03.9]} 15... Nh7 {[%clk 0:19:47.9]} 16. f4 {[%clk 0:23:34.4]} 16... h4 {[%clk 0:17:18.6]} 17. Bf2 {[%clk 0:23:12.4]} 17... g4 {[%clk 0:16:18.5]} 18. f5 {[%clk 0:22:22.6]} 18... Kh8 {[%clk 0:14:05.7]} 19. Qh6 {[%clk 0:21:06.1]} 19... Qf6 {[%clk 0:13:44.1]} 20. Qxf6+ {[%clk 0:19:14.2]} 20... Nxf6 {[%clk 0:13:46]} 21. Bxh4 {[%clk 0:19:14.5]} 21... Bxd4+ {[%clk 0:13:34.2]} 22. Bf2 {[%clk 0:18:26.5]} 22... Bxf2+ {[%clk 0:13:07.8]} 23. Kxf2 {[%clk 0:18:25.4]} 23... Kg7 {[%clk 0:11:57.4]} 24. Rad1 {[%clk 0:18:08.9]} 24... d5 {[%clk 0:09:35.4]} 25. exd5 {[%clk 0:17:35.6]} 25... Bxf5 {[%clk 0:09:23]} 26. dxc6 {[%clk 0:16:16.6]} 26... bxc6 {[%clk 0:09:15.9]} 27. Re7 {[%clk 0:15:12.2]} 27... Rfe8 {[%clk 0:08:21.3]} 28. Rxf7+ {[%clk 0:14:34.4]} 28... Kg6 {[%clk 0:08:13.9]} 29. Rc7 {[%clk 0:14:14]} 29... Rh8 {[%clk 0:06:21.1]} 30. Rxc6 {[%clk 0:10:48]} 30... Rad8 {[%clk 0:04:51.6]} 31. Rxd8 {[%clk 0:10:02.5]} 31... Rxd8 {[%clk 0:04:51.4]} 32. Nd5 {[%clk 0:05:47]} 32... Rf8 {[%clk 0:03:37.2]} 33. Nxf6 {[%clk 0:05:06.2]} 33... Rxf6 {[%clk 0:03:39.1]} 34. Rxf6+ {[%clk 0:05:06.8]} 34... Kxf6 {[%clk 0:03:40.1]} 35. Kg3 {[%clk 0:05:06.3]} 35... a5 {[%clk 0:03:22.1]} 36. Be2 {[%clk 0:04:49.2]} 36... Kg5 {[%clk 0:03:20.4]} 37. b3 {[%clk 0:04:22.8]} 37... Be6 {[%clk 0:03:16.1]} 38. Bc4 {[%clk 0:04:06]} 38... Bf5 {[%clk 0:03:00]} 39. a3 {[%clk 0:03:58.3]} 39... Be4 {[%clk 0:02:44.9]} 40. b4 {[%clk 0:03:57]} 40... axb4 {[%clk 0:02:44.3]} 41. axb4 {[%clk 0:03:57.7]} 41... Bb7 {[%clk 0:02:40.5]} 42. b5 {[%clk 0:03:48.3]} 42... Bc8 {[%clk 0:02:36.1]} 43. Bd5 {[%clk 0:03:36.5]} 43... Kf6 {[%clk 0:02:03.7]} 44. b6 {[%clk 0:03:31.7]} 44... Ke5 {[%clk 0:01:34.9]} 45. Bc6 {[%clk 0:03:31.3]} 45... Kd6 {[%clk 0:01:29.5]} 46. Be4 {[%clk 0:03:32.1]} 46... Be6 {[%clk 0:00:58.2]} 47. b7 {[%clk 0:03:29.4]} 47... Kc7 {[%clk 0:00:58.7]} 48. Kf4 {[%clk 0:03:18.2]} 48... Bd7 {[%clk 0:00:57.1]} 49. Bf5 {[%clk 0:03:07.3]} 49... Bc6 {[%clk 0:00:56.6]} 50. Bc8 {[%clk 0:02:53.1]} 50... Bxg2 {[%clk 0:00:55.1]} 51. Kxg4 {[%clk 0:02:50.9]} 51... Be4 {[%clk 0:00:26.1]} 52. h4 {[%clk 0:02:48.8]} 52... Bd3 {[%clk 0:00:25.3]} 53. Kg5 {[%clk 0:02:44.3]} 53... Be4 {[%clk 0:00:25.3]} 54. h5 {[%clk 0:02:45.1]} 54... Bh7 {[%clk 0:00:20.6]} 55. h6 {[%clk 0:02:44.3]} 55... Be4 {[%clk 0:00:21.3]} 56. Kf6 {[%clk 0:02:45.5]} 56... Bh7 {[%clk 0:00:21.4]} 57. Kg7 {[%clk 0:02:46.8]} 57... Be4 {[%clk 0:00:22.2]} 58. h7 {[%clk 0:02:47.4]} 58... Bxh7 {[%clk 0:00:23]} 59. Kxh7 {[%clk 0:02:48.8]} 59... Kb8 {[%clk 0:00:22.6]} 60. Kg6 {[%clk 0:02:50]} 60... Kc7 {[%clk 0:00:23.8]} 61. Kf6 {[%clk 0:02:51.3]} 61... Kb8 {[%clk 0:00:25.7]} 62. Ke6 {[%clk 0:02:52.4]} 62... Kc7 {[%clk 0:00:27.6]} 63. Ke7 {[%clk 0:02:49.4]} 63... Kb8 {[%clk 0:00:29.5]} 64. Kd7 {[%clk 0:02:50.3]} 64... Ka7 {[%clk 0:00:30.6]} 65. Kc7 {[%clk 0:02:51.2]} 65... Ka6 {[%clk 0:00:30.3]} 66. b8=Q+ {[%clk 0:02:45]} 66... Ka5 {[%clk 0:00:31.2]} 67. Kc6 {[%clk 0:02:41.5]} 67... Ka4 {[%clk 0:00:32.3]} 68. Kc5 {[%clk 0:02:42.5]} 68... Ka3 {[%clk 0:00:33.3]} 69. Kc4 {[%clk 0:02:43.5]} 69... Ka2 {[%clk 0:00:33.2]} 70. Kc3 {[%clk 0:02:44.4]} 70... Ka1 {[%clk 0:00:34.2]} 71. Qb2# {[%clk 0:02:42]} 1-0

[Event "Live Chess"]
[Site "Chess.com"]
[Date "2021.03.17"]
[Round "4"]
[White "MechAnjin"]
[Black "Bruce_Hedman"]
[Result "1-0"]
[CurrentPosition "8/2rR4/2P5/7k/4B2P/1P3PP1/P4K2/8 b - -"]
[Timezone "UTC"]
[ECO "A40"]
[ECOUrl "https://www.chess.com/openings/Queens-Pawn-Opening-Horwitz-Defense"]
[UTCDate "2021.03.17"]
[UTCTime "03:01:40"]
[WhiteElo "1622"]
[BlackElo "1032"]
[TimeControl "2100+2"]
[Termination "MechAnjin won by resignation"]
[StartTime "03:01:40"]
[EndDate "2021.03.17"]
[EndTime "03:51:48"]
[Link "https://www.chess.com/game/live/9689100581"]

1. d4 {[%clk 0:35:00.8]} 1... e6 {[%clk 0:34:57]} 2. Nf3 {[%clk 0:34:58.5]} 2... f5 {[%clk 0:34:52.7]} 3. c4 {[%clk 0:34:42.5]} 3... Nf6 {[%clk 0:34:42.9]} 4. Bg5 {[%clk 0:34:41.7]} 4... Be7 {[%clk 0:34:39.8]} 5. e3 {[%clk 0:34:24.8]} 5... O-O {[%clk 0:34:36.5]} 6. Nc3 {[%clk 0:34:20.5]} 6... a6 {[%clk 0:34:27.1]} 7. Bd3 {[%clk 0:34:11.9]} 7... d6 {[%clk 0:34:17.4]} 8. O-O {[%clk 0:33:56.9]} 8... Qe8 {[%clk 0:34:12.6]} 9. e4 {[%clk 0:32:59.8]} 9... Nbd7 {[%clk 0:33:15.3]} 10. exf5 {[%clk 0:32:50.9]} 10... e5 {[%clk 0:32:11]} 11. dxe5 {[%clk 0:32:41]} 11... dxe5 {[%clk 0:32:09.1]} 12. Re1 {[%clk 0:32:32.5]} 12... Ng4 {[%clk 0:30:31.3]} 13. h3 {[%clk 0:31:32.9]} 13... Bxg5 {[%clk 0:28:38.4]} 14. Nxg5 {[%clk 0:31:25.3]} 14... Qh5 {[%clk 0:27:45.5]} 15. Ne6 {[%clk 0:31:13.6]} 15... Rf6 {[%clk 0:25:17.1]} 16. Qxg4 {[%clk 0:31:03.7]} 16... Qh6 {[%clk 0:23:23.2]} 17. Nd5 {[%clk 0:29:23]} 17... Rf7 {[%clk 0:20:53.3]} 18. Nexc7 {[%clk 0:29:00.7]} 18... Rb8 {[%clk 0:19:45.6]} 19. Ne6 {[%clk 0:28:56.7]} 19... Nf6 {[%clk 0:18:43.5]} 20. Nxf6+ {[%clk 0:28:46.3]} 20... Rxf6 {[%clk 0:18:40.1]} 21. Rxe5 {[%clk 0:28:15.4]} 21... Bd7 {[%clk 0:15:58]} 22. Rae1 {[%clk 0:26:51]} 22... Re8 {[%clk 0:14:39.3]} 23. Qg5 {[%clk 0:26:15.8]} 23... Bxe6 {[%clk 0:12:45.7]} 24. Qxh6 {[%clk 0:26:11.6]} 24... Rxh6 {[%clk 0:12:16.3]} 25. Rxe6 {[%clk 0:26:09.4]} 25... Rd8 {[%clk 0:10:59.8]} 26. Re8+ {[%clk 0:26:02.8]} 26... Rxe8 {[%clk 0:10:58.8]} 27. Rxe8+ {[%clk 0:26:03]} 27... Kf7 {[%clk 0:10:58.3]} 28. Rb8 {[%clk 0:25:44.4]} 28... Rb6 {[%clk 0:10:56.8]} 29. b3 {[%clk 0:25:43]} 29... g6 {[%clk 0:10:33.9]} 30. fxg6+ {[%clk 0:25:36.8]} 30... hxg6 {[%clk 0:10:33.7]} 31. Be4 {[%clk 0:25:27]} 31... Kf6 {[%clk 0:10:12.4]} 32. Rxb7 {[%clk 0:25:20.3]} 32... Re6 {[%clk 0:09:52.2]} 33. Bd5 {[%clk 0:25:12]} 33... Re2 {[%clk 0:09:42.8]} 34. Rb6+ {[%clk 0:25:02.5]} 34... Kg5 {[%clk 0:09:28.6]} 35. Rxa6 {[%clk 0:25:02.3]} 35... Kf4 {[%clk 0:08:11.6]} 36. g3+ {[%clk 0:24:25.5]} 36... Kg5 {[%clk 0:08:00.5]} 37. Kg2 {[%clk 0:24:09.5]} 37... Rd2 {[%clk 0:07:26]} 38. Bf7 {[%clk 0:23:31.3]} 38... Rd7 {[%clk 0:06:32.8]} 39. Bxg6 {[%clk 0:23:10.1]} 39... Rg7 {[%clk 0:06:31.1]} 40. h4+ {[%clk 0:22:35.8]} 40... Kh6 {[%clk 0:05:47.5]} 41. Be4+ {[%clk 0:22:25.9]} 41... Kh5 {[%clk 0:05:30.4]} 42. Ra5+ {[%clk 0:22:07.6]} 42... Kh6 {[%clk 0:05:20.1]} 43. Rd5 {[%clk 0:21:09.7]} 43... Re7 {[%clk 0:05:14.7]} 44. f3 {[%clk 0:20:54.8]} 44... Ra7 {[%clk 0:05:09.6]} 45. Rd2 {[%clk 0:20:51.6]} 45... Kh5 {[%clk 0:04:49.1]} 46. c5 {[%clk 0:20:37]} 46... Rg7 {[%clk 0:04:15.6]} 47. Kf2 {[%clk 0:20:05.7]} 47... Rf7 {[%clk 0:04:06.8]} 48. c6 {[%clk 0:20:02.9]} 48... Rc7 {[%clk 0:03:54.9]} 49. Rd7 {[%clk 0:20:02.4]} 1-0

[Event "Live Chess"]
[Site "Chess.com"]
[Date "2021.03.17"]
[Round "4"]
[White "rimus11"]
[Black "aanval22"]
[Result "1-0"]
[CurrentPosition "4k3/Q1p1q2p/p3p1pb/1p6/2r1P3/1N5P/1P4P1/1K1R1R2 b - -"]
[Timezone "UTC"]
[ECO "D08"]
[ECOUrl "https://www.chess.com/openings/Queens-Gambit-Declined-Albin-Countergambit...4.Nf3-Nc6-5.a3-Bg4"]
[UTCDate "2021.03.17"]
[UTCTime "03:03:48"]
[WhiteElo "1513"]
[BlackElo "1014"]
[TimeControl "2100+2"]
[Termination "rimus11 won by resignation"]
[StartTime "03:03:48"]
[EndDate "2021.03.17"]
[EndTime "03:57:43"]
[Link "https://www.chess.com/game/live/9689124297"]

1. d4 {[%clk 0:34:48.2]} 1... d5 {[%clk 0:34:58.9]} 2. c4 {[%clk 0:34:05.1]} 2... e5 {[%clk 0:34:58.7]} 3. dxe5 {[%clk 0:33:46.5]} 3... d4 {[%clk 0:34:58.7]} 4. Nf3 {[%clk 0:33:27.5]} 4... Nc6 {[%clk 0:34:58.4]} 5. a3 {[%clk 0:32:55.5]} 5... Bg4 {[%clk 0:34:57.8]} 6. Bf4 {[%clk 0:31:10.3]} 6... Nge7 {[%clk 0:34:57.1]} 7. Nbd2 {[%clk 0:31:09.2]} 7... Ng6 {[%clk 0:34:57.7]} 8. Bg3 {[%clk 0:31:02.8]} 8... Qe7 {[%clk 0:34:48.2]} 9. h3 {[%clk 0:28:36.2]} 9... Bf5 {[%clk 0:34:26.8]} 10. e4 {[%clk 0:27:41.8]} 10... dxe3 {[%clk 0:34:24.9]} 11. fxe3 {[%clk 0:27:36.9]} 11... Ngxe5 {[%clk 0:34:20.6]} 12. Qb3 {[%clk 0:23:02.5]} 12... O-O-O {[%clk 0:33:39.8]} 13. O-O-O {[%clk 0:22:37.1]} 13... Nd3+ {[%clk 0:33:31.5]} 14. Bxd3 {[%clk 0:22:24.5]} 14... Rxd3 {[%clk 0:33:25.9]} 15. Qb5 {[%clk 0:20:46.5]} 15... g6 {[%clk 0:32:02.9]} 16. e4 {[%clk 0:17:18.3]} 16... Bd7 {[%clk 0:31:26.6]} 17. Rhe1 {[%clk 0:14:55.5]} 17... a6 {[%clk 0:29:48.1]} 18. Qa4 {[%clk 0:13:45.2]} 18... Nd4 {[%clk 0:25:25.7]} 19. Qa5 {[%clk 0:13:04.3]} 19... Be6 {[%clk 0:24:32.6]} 20. Nxd4 {[%clk 0:11:46.3]} 20... Rxg3 {[%clk 0:24:06]} 21. Qe5 {[%clk 0:11:25.2]} 21... Rxa3 {[%clk 0:23:50.2]} 22. Qxh8 {[%clk 0:11:09.3]} 22... Ra1+ {[%clk 0:23:23.2]} 23. Kc2 {[%clk 0:09:47.8]} 23... Ra4 {[%clk 0:23:17.7]} 24. Qe5 {[%clk 0:08:39.4]} 24... b5 {[%clk 0:22:55]} 25. Nxe6 {[%clk 0:07:26.7]} 25... fxe6 {[%clk 0:22:47.1]} 26. Qd4 {[%clk 0:06:09.2]} 26... Bh6 {[%clk 0:22:09.2]} 27. Qa7 {[%clk 0:05:07.7]} 27... Kd7 {[%clk 0:21:18.1]} 28. Nb3+ {[%clk 0:04:30.6]} 28... Ke8 {[%clk 0:21:08.8]} 29. Rf1 {[%clk 0:03:10.6]} 29... Rxc4+ {[%clk 0:20:52.9]} 30. Kb1 {[%clk 0:03:03]} 1-0

[Event "Live Chess"]
[Site "Chess.com"]
[Date "2021.03.17"]
[Round "4"]
[White "GM_Fobby_Bischer"]
[Black "echecsmike"]
[Result "1-0"]
[CurrentPosition "4qk2/1Qb5/p5pp/P1P2p2/1P3P2/5RP1/7P/4BK2 b - -"]
[Timezone "UTC"]
[ECO "B12"]
[ECOUrl "https://www.chess.com/openings/Caro-Kann-Defense-Advance-Short-Variation-with-4-Nf3"]
[UTCDate "2021.03.17"]
[UTCTime "03:02:00"]
[WhiteElo "1165"]
[BlackElo "1446"]
[TimeControl "2100+2"]
[Termination "GM_Fobby_Bischer won by resignation"]
[StartTime "03:02:00"]
[EndDate "2021.03.17"]
[EndTime "03:27:19"]
[Link "https://www.chess.com/game/live/9689104207"]

1. e4 {[%clk 0:34:54.3]} 1... c6 {[%clk 0:34:59.1]} 2. d4 {[%clk 0:34:54.2]} 2... d5 {[%clk 0:34:58.5]} 3. e5 {[%clk 0:34:53.9]} 3... Bf5 {[%clk 0:34:58.2]} 4. Nf3 {[%clk 0:34:50.8]} 4... h6 {[%clk 0:34:52.6]} 5. Bd3 {[%clk 0:34:46.6]} 5... Bxd3 {[%clk 0:34:51.9]} 6. Qxd3 {[%clk 0:34:48.5]} 6... e6 {[%clk 0:34:52.2]} 7. Nbd2 {[%clk 0:34:41.4]} 7... Bb4 {[%clk 0:34:42.9]} 8. c3 {[%clk 0:34:37]} 8... Ba5 {[%clk 0:34:43]} 9. Nb3 {[%clk 0:34:32.1]} 9... Bb6 {[%clk 0:34:38.6]} 10. Be3 {[%clk 0:33:49]} 10... Nd7 {[%clk 0:34:34.7]} 11. a4 {[%clk 0:33:45.7]} 11... Ne7 {[%clk 0:34:34.3]} 12. O-O {[%clk 0:33:37.4]} 12... O-O {[%clk 0:34:34.1]} 13. a5 {[%clk 0:33:07.5]} 13... Bc7 {[%clk 0:34:33.3]} 14. Nh4 {[%clk 0:32:17.6]} 14... a6 {[%clk 0:33:28.3]} 15. f4 {[%clk 0:32:05.4]} 15... f5 {[%clk 0:32:40.6]} 16. exf6 {[%clk 0:30:24.6]} 16... Rxf6 {[%clk 0:32:29.9]} 17. Nc5 {[%clk 0:29:27.8]} 17... Nxc5 {[%clk 0:32:07.9]} 18. dxc5 {[%clk 0:29:29.7]} 18... Qf8 {[%clk 0:31:16]} 19. g3 {[%clk 0:29:10.6]} 19... Nf5 {[%clk 0:29:47.5]} 20. Nxf5 {[%clk 0:28:33.5]} 20... exf5 {[%clk 0:29:41.8]} 21. Bd4 {[%clk 0:28:28.5]} 21... Re6 {[%clk 0:29:01.7]} 22. Rae1 {[%clk 0:28:10.6]} 22... Rae8 {[%clk 0:28:59.6]} 23. Rxe6 {[%clk 0:27:47.9]} 23... Rxe6 {[%clk 0:28:58.1]} 24. b4 {[%clk 0:27:28.4]} 24... Re4 {[%clk 0:27:01.3]} 25. Rf3 {[%clk 0:26:25.6]} 25... Qe8 {[%clk 0:26:07.6]} 26. c4 {[%clk 0:25:55.7]} 26... Re1+ {[%clk 0:26:02.7]} 27. Kf2 {[%clk 0:25:47.1]} 27... Re4 {[%clk 0:25:40.9]} 28. cxd5 {[%clk 0:25:38.2]} 28... cxd5 {[%clk 0:25:39.3]} 29. Bc3 {[%clk 0:25:04.8]} 29... g6 {[%clk 0:24:03.1]} 30. Qxd5+ {[%clk 0:24:47.3]} 30... Kf8 {[%clk 0:23:30.8]} 31. Qxb7 {[%clk 0:24:31.1]} 31... Re2+ {[%clk 0:23:15.7]} 32. Kf1 {[%clk 0:24:24]} 32... Re1+ {[%clk 0:23:12.6]} 33. Bxe1 {[%clk 0:24:00.4]} 1-0

[Event "Live Chess"]
[Site "Chess.com"]
[Date "2021.03.17"]
[Round "4"]
[White "dum2020arEEEWS"]
[Black "sfdeals"]
[Result "0-1"]
[CurrentPosition "2k4r/1pp5/p1npp3/P7/R3P2p/6qP/1PP1N3/2N2r1K w - -"]
[Timezone "UTC"]
[ECO "C45"]
[ECOUrl "https://www.chess.com/openings/Scotch-Game-Classical-Potter-Variation-5...Bb6"]
[UTCDate "2021.03.17"]
[UTCTime "03:02:02"]
[WhiteElo "952"]
[BlackElo "1417"]
[TimeControl "2100+2"]
[Termination "sfdeals won by resignation"]
[StartTime "03:02:02"]
[EndDate "2021.03.17"]
[EndTime "03:40:01"]
[Link "https://www.chess.com/game/live/9689104597"]

1. e4 {[%clk 0:34:58.8]} 1... e5 {[%clk 0:34:57.1]} 2. Nf3 {[%clk 0:34:59]} 2... Nc6 {[%clk 0:34:54.9]} 3. d4 {[%clk 0:34:59.8]} 3... exd4 {[%clk 0:34:53]} 4. Nxd4 {[%clk 0:35:00.5]} 4... Bc5 {[%clk 0:34:45.1]} 5. Nb3 {[%clk 0:35:00.8]} 5... Bb6 {[%clk 0:34:22.9]} 6. Nc3 {[%clk 0:34:51.6]} 6... Nf6 {[%clk 0:34:09.9]} 7. Bg5 {[%clk 0:34:47.7]} 7... h6 {[%clk 0:32:49.2]} 8. Bh4 {[%clk 0:34:45.7]} 8... d6 {[%clk 0:31:03.1]} 9. Bc4 {[%clk 0:34:27.7]} 9... Be6 {[%clk 0:29:36.4]} 10. Bxe6 {[%clk 0:34:06.8]} 10... fxe6 {[%clk 0:29:28.5]} 11. O-O {[%clk 0:33:29.2]} 11... Qe7 {[%clk 0:28:15.4]} 12. Re1 {[%clk 0:32:56.7]} 12... O-O-O {[%clk 0:27:05.4]} 13. a4 {[%clk 0:32:04.1]} 13... g5 {[%clk 0:26:03.7]} 14. Bg3 {[%clk 0:32:03.2]} 14... a6 {[%clk 0:25:21.4]} 15. a5 {[%clk 0:31:43.1]} 15... Ba7 {[%clk 0:25:02.5]} 16. Ra4 {[%clk 0:29:24.3]} 16... h5 {[%clk 0:24:28.4]} 17. h3 {[%clk 0:28:46]} 17... h4 {[%clk 0:24:07.8]} 18. Bh2 {[%clk 0:28:44.3]} 18... Rdg8 {[%clk 0:23:24]} 19. Nc1 {[%clk 0:27:58.7]} 19... g4 {[%clk 0:21:31.1]} 20. Kh1 {[%clk 0:27:46.5]} 20... Bxf2 {[%clk 0:20:50.3]} 21. Rf1 {[%clk 0:27:34.4]} 21... Bg3 {[%clk 0:20:23.9]} 22. Bg1 {[%clk 0:27:18.9]} 22... Qg7 {[%clk 0:18:41]} 23. Qd2 {[%clk 0:24:04.3]} 23... gxh3 {[%clk 0:17:39.2]} 24. gxh3 {[%clk 0:23:54.1]} 24... Bf4 {[%clk 0:16:54.2]} 25. Qf2 {[%clk 0:23:18.1]} 25... Nh5 {[%clk 0:15:28.1]} 26. Bh2 {[%clk 0:22:36.1]} 26... Bxh2 {[%clk 0:13:31.1]} 27. Kxh2 {[%clk 0:22:23.8]} 27... Qe5+ {[%clk 0:13:22.5]} 28. Kh1 {[%clk 0:21:53.3]} 28... Ng3+ {[%clk 0:13:06.2]} 29. Qxg3 {[%clk 0:21:42.5]} 29... Qxg3 {[%clk 0:13:02.8]} 30. Rf8+ {[%clk 0:21:30.3]} 30... Rxf8 {[%clk 0:13:01.3]} 31. N3e2 {[%clk 0:21:26.2]} 31... Rf1+ {[%clk 0:12:59.7]} 0-1

[Event "Live Chess"]
[Site "Chess.com"]
[Date "2021.03.17"]
[Round "4"]
[White "Charvii"]
[Black "vincitore51745"]
[Result "1-0"]
[CurrentPosition "4Rr2/3r2k1/p4p1p/B5p1/Q7/2P2P2/1P4PP/5RK1 b - -"]
[Timezone "UTC"]
[ECO "B44"]
[ECOUrl "https://www.chess.com/openings/Sicilian-Defense-Taimanov-Variation"]
[UTCDate "2021.03.17"]
[UTCTime "03:02:08"]
[WhiteElo "1020"]
[BlackElo "826"]
[TimeControl "2100+2"]
[Termination "Charvii won by resignation"]
[StartTime "03:02:08"]
[EndDate "2021.03.17"]
[EndTime "03:40:25"]
[Link "https://www.chess.com/game/live/9689105001"]

1. e4 {[%clk 0:34:57.9]} 1... c5 {[%clk 0:34:54]} 2. Nf3 {[%clk 0:34:54.2]} 2... e6 {[%clk 0:34:43.9]} 3. d4 {[%clk 0:34:28.6]} 3... cxd4 {[%clk 0:34:38.2]} 4. Nxd4 {[%clk 0:34:24.7]} 4... Nc6 {[%clk 0:34:05.8]} 5. Bc4 {[%clk 0:33:33.7]} 5... a6 {[%clk 0:33:28.6]} 6. Nc3 {[%clk 0:32:12.7]} 6... Nf6 {[%clk 0:32:58.4]} 7. Bg5 {[%clk 0:32:00.5]} 7... Qc7 {[%clk 0:32:21.5]} 8. Nxc6 {[%clk 0:31:01.9]} 8... Qxc6 {[%clk 0:31:45.5]} 9. Qd3 {[%clk 0:29:48.8]} 9... b5 {[%clk 0:31:17.4]} 10. Bb3 {[%clk 0:29:44.1]} 10... Be7 {[%clk 0:30:55.4]} 11. a3 {[%clk 0:29:36.9]} 11... h6 {[%clk 0:30:36.7]} 12. Bh4 {[%clk 0:29:34]} 12... Bb7 {[%clk 0:29:58]} 13. f3 {[%clk 0:29:21.9]} 13... O-O {[%clk 0:29:56.7]} 14. O-O {[%clk 0:29:16.8]} 14... d6 {[%clk 0:29:13.2]} 15. Rae1 {[%clk 0:27:50.7]} 15... g5 {[%clk 0:28:46.5]} 16. Bf2 {[%clk 0:27:12.4]} 16... Nd7 {[%clk 0:27:12.8]} 17. Ne2 {[%clk 0:25:00.1]} 17... Bf6 {[%clk 0:26:44.4]} 18. c3 {[%clk 0:24:41.1]} 18... Nc5 {[%clk 0:25:34.2]} 19. Qc2 {[%clk 0:24:24.9]} 19... Nxb3 {[%clk 0:25:10.1]} 20. Qxb3 {[%clk 0:24:19]} 20... Rad8 {[%clk 0:24:22.5]} 21. Nd4 {[%clk 0:24:00]} 21... Qc7 {[%clk 0:23:44.7]} 22. Bg3 {[%clk 0:23:21.8]} 22... e5 {[%clk 0:23:07.5]} 23. Nf5 {[%clk 0:23:03.4]} 23... Bg7 {[%clk 0:22:22]} 24. Nxg7 {[%clk 0:22:35.4]} 24... Kxg7 {[%clk 0:22:20.9]} 25. a4 {[%clk 0:21:32.5]} 25... d5 {[%clk 0:21:25.1]} 26. exd5 {[%clk 0:20:35.1]} 26... Bxd5 {[%clk 0:21:13.3]} 27. Qc2 {[%clk 0:20:28.2]} 27... bxa4 {[%clk 0:19:24.3]} 28. Bxe5+ {[%clk 0:20:21.3]} 28... f6 {[%clk 0:19:08.4]} 29. Bxc7 {[%clk 0:19:54.3]} 29... Rd7 {[%clk 0:18:19.7]} 30. Ba5 {[%clk 0:19:40.9]} 30... Bf7 {[%clk 0:17:23.9]} 31. Qxa4 {[%clk 0:18:39.6]} 31... Be8 {[%clk 0:16:16.6]} 32. Rxe8 {[%clk 0:18:05.3]} 1-0

[Event "Live Chess"]
[Site "Chess.com"]
[Date "2021.03.17"]
[Round "4"]
[White "ComfyQueso"]
[Black "JuditSztaray"]
[Result "0-1"]
[CurrentPosition "r6k/ppp2q2/6rp/8/5P2/6PK/7P/5B1R w - -"]
[Timezone "UTC"]
[ECO "D06"]
[ECOUrl "https://www.chess.com/openings/Queens-Gambit-Declined-Marshall-Defense-3.cxd5-Nxd5-4.e4"]
[UTCDate "2021.03.17"]
[UTCTime "03:04:12"]
[WhiteElo "739"]
[BlackElo "800"]
[TimeControl "2100+2"]
[Termination "JuditSztaray won by resignation"]
[StartTime "03:04:12"]
[EndDate "2021.03.17"]
[EndTime "03:25:02"]
[Link "https://www.chess.com/game/live/9689127781"]

1. d4 {[%clk 0:35:01.5]} 1... d5 {[%clk 0:34:52]} 2. c4 {[%clk 0:35:01.1]} 2... Nf6 {[%clk 0:32:40.8]} 3. cxd5 {[%clk 0:34:55.6]} 3... Nxd5 {[%clk 0:32:39.6]} 4. e4 {[%clk 0:34:54.5]} 4... Nf6 {[%clk 0:32:28.4]} 5. Nc3 {[%clk 0:34:54.2]} 5... e6 {[%clk 0:32:21.2]} 6. Nf3 {[%clk 0:34:46.6]} 6... Bb4 {[%clk 0:31:48.7]} 7. Bg5 {[%clk 0:34:45.4]} 7... O-O {[%clk 0:31:15.4]} 8. e5 {[%clk 0:34:45.6]} 8... Bxc3+ {[%clk 0:31:03.2]} 9. bxc3 {[%clk 0:34:42.1]} 9... h6 {[%clk 0:30:56.9]} 10. Bh4 {[%clk 0:34:26.7]} 10... g5 {[%clk 0:30:40]} 11. exf6 {[%clk 0:34:26.5]} 11... gxh4 {[%clk 0:30:32.4]} 12. Nxh4 {[%clk 0:34:27]} 12... Qxf6 {[%clk 0:30:31]} 13. Qg4+ {[%clk 0:34:20.6]} 13... Qg7 {[%clk 0:30:16.7]} 14. Qe4 {[%clk 0:34:03.5]} 14... Nc6 {[%clk 0:26:52.2]} 15. g3 {[%clk 0:33:59.7]} 15... e5 {[%clk 0:26:09]} 16. dxe5 {[%clk 0:33:48.4]} 16... Nxe5 {[%clk 0:26:06.9]} 17. f4 {[%clk 0:33:42.6]} 17... Ng4 {[%clk 0:25:20.9]} 18. Nf5 {[%clk 0:33:25.4]} 18... Bxf5 {[%clk 0:21:42.1]} 19. Qxf5 {[%clk 0:33:25.1]} 19... Qxc3+ {[%clk 0:21:41.4]} 20. Ke2 {[%clk 0:33:13.2]} 20... Qxa1 {[%clk 0:21:39.9]} 21. Qxg4+ {[%clk 0:33:13.1]} 21... Kh8 {[%clk 0:21:26.1]} 22. Kf2 {[%clk 0:33:11.2]} 22... Qxa2+ {[%clk 0:21:26.1]} 23. Kf3 {[%clk 0:33:07.4]} 23... Rg8 {[%clk 0:21:22.5]} 24. Qf5 {[%clk 0:33:02.6]} 24... Qa3+ {[%clk 0:20:49.9]} 25. Kg2 {[%clk 0:32:57.6]} 25... Qa2+ {[%clk 0:18:49.2]} 26. Kh3 {[%clk 0:32:53.2]} 26... Rg6 {[%clk 0:18:37.2]} 27. Qxf7 {[%clk 0:32:44.8]} 27... Qxf7 {[%clk 0:18:36]} 0-1